bitfinex-derivatives/quotes_ETHF0:USTF0_20230105
["timestamp","ask_amount","ask_price","bid_price","bid_amount"]
[1672927386137,1.78687011,1247.1,1247.0,6.68288149]
[1672927386345,1.78687011,1247.1,1247.0,5.50052943]
[1672927387075,1.78687011,1247.1,1247.0,4.30028076]
[1672927389393,4.99467011,1247.2,1247.0,6.30387531]
[1672927389598,4.99467011,1247.2,1247.1,1.8002288]
[1672927389918,4.1212539,1247.3,1247.1,2.38260073]
[1672927390126,8.57017395,1247.4,1247.2,5.50030298]
[1672927390337,5.59029348,1247.4,1247.2,5.50030298]
[1672927390547,8.57017395,1247.4,1247.2,5.50030298]
[1672927390762,5.59029348,1247.4,1247.3,1.20012119]
[1672927390972,5.59029348,1247.4,1247.3,3.70012119]
[1672927391384,5.59029348,1247.4,1247.3,11.68712119]
[1672927391916,2.38249348,1247.4,1247.3,11.68712119]
[1672927393714,2.97988047,1247.5,1247.3,13.48730298]
[1672927394555,8.68768047,1247.6,1247.4,1.20012119]
[1672927394762,8.68768047,1247.6,1247.4,3.70012119]
[1672927395390,8.68768047,1247.6,1247.3,12.28718179]
[1672927395391,8.68768047,1247.6,1247.3,5.50030298]
[1672927395603,2.97988047,1247.5,1247.3,3.70012119]
[1672927395814,5.7078,1247.4,1247.3,3.70012119]
[1672927396236,5.7078,1247.4,1247.3,1.20012119]
[1672927396766,5.7078,1247.4,1247.2,13.48730298]
[1672927397713,3.2078,1247.4,1247.3,3.70012119]
[1672927399499,3.2078,1247.4,1247.3,5.50030298]
[1672927399711,3.2078,1247.4,1247.3,5.49972873]
[1672927400024,3.2078,1247.4,1247.3,13.48673297]
[1672927400957,3.2078,1247.4,1247.3,11.68655118]
[1672927401170,3.2078,1247.4,1247.3,1.19955118]
[1672927401591,6.18768047,1247.4,1247.2,2.99973297]
[1672927401802,2.5,1247.3,1247.2,1.19955118]
[1672927402645,6.18768047,1247.4,1247.1,10.98673297]
[1672927402861,3.2078,1247.4,1247.2,5.49973297]
[1672927403070,3.2078,1247.4,1247.3,2.5]
[1672927403283,3.2078,1247.4,1247.3,3.69955118]
[1672927403497,3.2078,1247.4,1247.3,2.5]
[1672927404754,3.2078,1247.4,1247.3,3.69955118]
[1672927406228,8.68768047,1247.6,1247.3,5.49973297]
[1672927406542,6.18768047,1247.6,1247.4,2.99973297]
[1672927406744,6.18768047,1247.6,1247.5,2.5]
[1672927407595,3.2078,1247.6,1247.5,2.5]
[1672927408423,3.2078,1247.6,1247.5,3.69955118]
[1672927410323,3.2078,1247.6,1247.5,2.5]
[1672927410845,3.2078,1247.6,1247.5,7.987]
[1672927411055,3.2078,1247.6,1247.4,9.18655118]
[1672927411262,5.7078,1247.6,1247.4,9.18655118]
[1672927411475,5.7078,1247.6,1247.4,7.987]
[1672927411684,3.2078,1247.6,1247.5,2.5]
[1672927412517,3.2078,1247.6,1247.4,9.18655118]
[1672927412947,3.2078,1247.6,1247.5,2.5]
[1672927416949,5.7078,1247.6,1247.5,2.5]
[1672927417472,3.2078,1247.6,1247.5,2.5]
[1672927417786,3.2078,1247.7,1247.5,11.68655118]
[1672927418415,8.68768047,1247.9,1247.6,1.19955118]
[1672927418629,8.68768047,1247.9,1247.7,2.5]
[1672927420103,8.68768047,1247.9,1247.7,10.487]
[1672927420626,3.2078,1247.9,1247.7,10.487]
[1672927421150,2.5,1247.8,1247.7,11.68655118]
[1672927421565,3.2078,1247.9,1247.7,10.487]
[1672927423558,5.58599198,1247.9,1247.7,10.487]
[1672927424199,5.58599198,1247.9,1247.6,4.40735118]
[1672927424200,2.5,1247.8,1247.6,9.18655118]
[1672927424413,0.6773,1247.8,1247.7,10.487]
[1672927424937,8.56587245,1247.9,1247.7,10.487]
[1672927425132,5.58599198,1247.9,1247.7,10.487]
[1672927425347,2.5,1247.8,1247.7,10.487]
[1672927426191,2.5,1247.8,1247.6,7.987]
[1672927426400,3.2078,1247.7,1247.5,11.68655118]
[1672927426610,2.5,1247.6,1247.5,11.68655118]
[1672927426815,3.2078,1247.7,1247.5,11.68655118]
[1672927427253,3.2078,1247.7,1247.5,13.48673297]
[1672927429249,2.37819198,1247.8,1247.6,1.19955118]
[1672927429457,5.58599198,1247.9,1247.7,10.487]
[1672927429884,5.58599198,1247.9,1247.8,2.5]
[1672927430613,8.56587245,1247.9,1247.7,10.487]
[1672927430826,2.5,1247.8,1247.7,10.487]
[1672927431241,4.87819198,1247.8,1247.6,9.18655118]
[1672927431451,3.2078,1247.7,1247.6,9.18655118]
[1672927431986,3.2078,1247.7,1247.6,7.987]
[1672927432299,3.2078,1247.7,1247.6,9.18655118]
[1672927433453,3.2078,1247.7,1247.6,11.68655118]
[1672927434400,3.2078,1247.7,1247.6,13.48673297]
[1672927434919,2.37819198,1247.9,1247.8,7.987]
[1672927435550,5.35807245,1247.9,1247.8,7.987]
[1672927435762,2.97988047,1247.9,1247.8,7.987]
[1672927435971,5.35863965,1247.9,1247.8,7.987]
[1672927436182,2.97988047,1247.9,1247.8,7.987]
[1672927436814,2.97988047,1247.9,1247.7,7.987]
[1672927437026,5.58648468,1247.8,1247.6,2.5]
[1672927437233,2.37868468,1247.7,1247.5,3.69955118]
[1672927437443,2.5,1247.6,1247.5,3.69955118]
[1672927437861,2.5,1247.6,1247.5,11.68655118]
[1672927438181,2.5,1247.6,1247.5,7.987]
[1672927438709,7.85856515,1247.7,1247.5,10.487]
[1672927438926,7.85856515,1247.7,1247.6,2.5]
[1672927439446,5.35856515,1247.7,1247.6,2.5]
[1672927439764,2.37868468,1247.7,1247.6,2.5]
[1672927440179,2.37868468,1247.7,1247.6,10.487]
[1672927440599,4.87868468,1247.7,1247.6,7.987]
[1672927440922,2.37868468,1247.7,1247.6,7.987]
[1672927444176,2.37868468,1247.7,1247.6,9.18655118]
[1672927448693,2.37868468,1247.7,1247.6,10.98673297]
[1672927450485,2.37868468,1247.7,1247.6,12.99498179]
[1672927450910,8.56636515,1247.8,1247.6,12.99498179]
[1672927451120,6.18768047,1247.8,1247.7,10.487]
[1672927453107,6.19010976,1247.8,1247.7,10.487]
[1672927453322,6.19024681,1247.8,1247.7,10.487]
[1672927453956,6.19024681,1247.8,1247.7,11.68696095]
[1672927454268,2.98244681,1247.8,1247.7,11.68696095]
[1672927454477,2.98244681,1247.8,1247.7,10.487]
[1672927454794,2.98244681,1247.8,1247.7,11.68696095]
[1672927455216,2.98244681,1247.8,1247.7,10.487]
[1672927455426,2.98244681,1247.8,1247.7,11.68696095]
[1672927456685,5.36917549,1247.8,1247.7,13.48714274]
[1672927456894,2.38667365,1247.8,1247.7,15.49498179]
[1672927458792,2.38667365,1247.8,1247.7,17.87758252]
[1672927459305,2.38667365,1247.8,1247.7,15.49498179]
[1672927460357,2.38667365,1247.8,1247.7,16.69572771]
[1672927460568,2.38667365,1247.8,1247.7,15.49498179]
[1672927461723,2.38667365,1247.8,1247.7,17.87758252]
[1672927462782,2.38667365,1247.8,1247.7,12.28718179]
[1672927462987,5.36800969,1247.8,1247.7,13.48805785]
[1672927463311,5.36800969,1247.8,1247.7,12.28718179]
[1672927463521,5.36800969,1247.8,1247.7,13.48805007]
[1672927463734,2.98244681,1247.8,1247.7,13.48805007]
[1672927464565,2.38548412,1247.8,1247.7,15.49498179]
[1672927467724,2.38548412,1247.8,1247.7,12.28718179]
[1672927468669,2.38548412,1247.8,1247.7,14.66978252]
[1672927469094,2.38548412,1247.8,1247.7,12.28718179]
[1672927471302,2.38548412,1247.8,1247.7,15.49498179]
[1672927471720,2.38548412,1247.8,1247.7,17.87758252]
[1672927472881,2.38548412,1247.9,1247.7,17.4979606]
[1672927473083,5.36793093,1247.9,1247.8,13.48809748]
[1672927473507,5.36793093,1247.9,1247.8,11.68743899]
[1672927474671,2.98244681,1247.9,1247.8,11.68743899]
[1672927475398,5.3675526,1247.9,1247.8,11.68743899]
[1672927475710,2.98244681,1247.9,1247.8,9.18743899]
[1672927475924,3.2078,1248.0,1247.7,11.68743899]
[1672927476133,6.18890793,1247.8,1247.7,11.68743899]
[1672927476348,5.36599321,1247.8,1247.7,11.68743899]
[1672927476773,5.36599321,1247.8,1247.7,9.18743899]
[1672927477393,2.98110793,1247.8,1247.7,9.18743899]
[1672927477608,2.98110793,1247.8,1247.7,11.68743899]
[1672927477817,5.36657115,1247.8,1247.7,11.68743899]
[1672927478662,5.36657115,1247.8,1247.7,13.48809748]
[1672927478873,2.38546322,1247.8,1247.7,13.48809748]
[1672927479496,5.36657115,1247.8,1247.7,13.48809748]
[1672927480239,2.98110793,1247.8,1247.7,13.48809748]
[1672927481181,5.36737518,1247.8,1247.7,13.48809748]
[1672927482344,5.36737518,1247.8,1247.7,10.98809748]
[1672927482651,2.98110793,1247.8,1247.7,10.98809748]
[1672927485279,5.7078,1247.9,1247.7,9.18743899]
[1672927485592,5.7078,1247.9,1247.7,7.987]
[1672927485593,9.28331311,1247.9,1247.7,7.987]
[1672927485798,2.5,1247.8,1247.7,7.987]
[1672927488014,5.48308343,1247.8,1247.7,9.18743899]
[1672927488956,2.5,1247.8,1247.7,9.18743899]
[1672927489160,2.98307091,1247.8,1247.7,9.18743899]
[1672927489375,5.48307091,1247.8,1247.7,9.18743899]
[1672927490213,5.48307091,1247.8,1247.7,10.98809748]
[1672927490423,2.98307091,1247.8,1247.7,10.98809748]
[1672927490638,2.98307091,1247.8,1247.7,9.18743899]
[1672927490849,2.98307091,1247.8,1247.7,10.98809748]
[1672927495791,5.36987873,1247.8,1247.7,9.78765849]
[1672927496316,2.98307091,1247.8,1247.7,9.78765849]
[1672927496732,5.3698924,1247.8,1247.7,9.78765849]
[1672927496940,2.98307091,1247.8,1247.7,9.78765849]
[1672927497157,5.37022113,1247.8,1247.7,9.78765849]
[1672927497574,5.37022113,1247.9,1247.7,11.79022385]
[1672927497784,2.38715022,1247.9,1247.8,8.09040073]
[1672927498104,2.98307091,1247.9,1247.8,1.2011097]
[1672927498418,3.57551311,1248.0,1247.8,1.2011097]
[1672927498632,2.5,1247.9,1247.8,1.2011097]
[1672927499370,2.5,1247.9,1247.7,5.50272804]
[1672927499575,2.5,1247.9,1247.8,1.2011097]
[1672927499786,2.5,1247.9,1247.8,3.7011097]
[1672927499996,2.5,1247.9,1247.8,1.2011097]
[1672927500524,2.5,1247.9,1247.7,5.50272804]
[1672927500731,2.98354699,1247.8,1247.7,5.50272804]
[1672927501150,2.98354699,1247.8,1247.7,4.30161834]
[1672927502102,2.98354699,1247.8,1247.7,5.50283135]
[1672927502525,6.19134699,1247.8,1247.7,3.00283135]
[1672927502733,6.19111761,1247.8,1247.7,1.20121301]
[1672927503255,6.19111761,1247.8,1247.7,3.00283135]
[1672927503667,6.19111761,1247.8,1247.7,1.20121301]
[1672927503882,6.19111761,1247.8,1247.7,3.00283135]
[1672927504201,6.19111761,1247.8,1247.7,1.20121301]
[1672927504412,6.19111761,1247.8,1247.7,3.00283135]
[1672927504621,3.2078,1247.8,1247.7,1.20121301]
[1672927505568,3.2078,1247.8,1247.6,10.98983135]
[1672927505768,5.48282436,1247.7,1247.6,10.98983135]
[1672927505981,5.48282436,1247.7,1247.6,9.78861834]
[1672927506193,5.48282436,1247.7,1247.6,10.98988059]
[1672927506615,7.86887136,1247.7,1247.6,10.98988059]
[1672927506825,5.48282436,1247.7,1247.6,9.18818311]
[1672927507040,5.48282436,1247.7,1247.6,9.18570715]
[1672927507250,2.5,1247.7,1247.6,9.18570715]
[1672927507460,2.5,1247.7,1247.6,11.68570715]
[1672927507882,5.48225497,1247.7,1247.6,11.68570715]
[1672927508304,2.5,1247.7,1247.6,7.98452404]
[1672927508513,5.48165166,1247.7,1247.6,10.48452404]
[1672927508717,5.48165166,1247.7,1247.6,11.68570715]
[1672927508924,8.68945166,1247.7,1247.6,11.68570715]
[1672927509781,6.18945166,1247.7,1247.6,11.68570715]
[1672927510926,6.18945166,1247.7,1247.6,9.18570715]
[1672927512193,6.18945166,1247.7,1247.6,7.98452404]
[1672927512609,6.18876448,1247.7,1247.5,10.98732549]
[1672927512824,2.38485397,1247.6,1247.5,10.98732549]
[1672927513030,4.88485397,1247.6,1247.5,10.98732549]
[1672927513454,4.88485397,1247.6,1247.5,10.98695355]
[1672927513667,5.36581845,1247.6,1247.5,10.98695355]
[1672927513979,2.38485397,1247.6,1247.5,9.78614238]
[1672927514188,2.38485397,1247.6,1247.5,10.98686761]
[1672927514505,5.36581845,1247.6,1247.5,10.98686761]
[1672927516285,2.38485397,1247.6,1247.5,10.98686761]
[1672927518084,5.59265397,1247.6,1247.5,10.98686761]
[1672927520073,2.38485397,1247.6,1247.5,9.78614238]
[1672927520486,5.59265397,1247.6,1247.5,10.98676326]
[1672927520909,8.57361845,1247.6,1247.5,9.18514492]
[1672927521222,6.18876448,1247.6,1247.5,9.18514492]
[1672927522067,8.57358422,1247.6,1247.5,9.18514492]
[1672927522491,8.57358422,1247.6,1247.5,11.68514492]
[1672927522702,5.59261974,1247.6,1247.5,10.98676326]
[1672927524163,5.59261974,1247.6,1247.5,9.18514492]
[1672927524374,5.59261974,1247.6,1247.5,10.98676326]
[1672927525011,2.38481974,1247.6,1247.5,10.98676326]
[1672927525225,2.38481974,1247.6,1247.5,9.78614238]
[1672927525637,2.38481974,1247.6,1247.5,10.98658245]
[1672927526272,2.25656837,1247.6,1247.5,9.78614238]
[1672927526481,2.98096448,1247.7,1247.5,9.78614238]
[1672927526693,2.98096448,1247.7,1247.6,1.20037709]
[1672927526894,2.98096448,1247.7,1247.6,11.68490113]
[1672927534587,2.98096448,1247.7,1247.6,12.28614238]
[1672927534796,2.98096448,1247.8,1247.6,16.07492477]
[1672927535111,2.98396292,1247.9,1247.8,7.98452404]
[1672927535320,9.28331311,1248.0,1247.9,2.5]
[1672927535738,9.28331311,1248.0,1247.8,7.98452404]
[1672927538049,13.43172583,1248.0,1247.8,7.98452404]
[1672927539635,3.57551311,1247.9,1247.8,7.98452404]
[1672927540260,13.43172583,1248.0,1247.8,7.98452404]
[1672927540472,3.57551311,1247.9,1247.8,7.98452404]
[1672927540680,3.57551311,1247.9,1247.7,7.98452404]
[1672927540887,5.7078,1247.8,1247.7,7.98452404]
[1672927541626,2.5,1247.8,1247.7,7.98452404]
[1672927541838,5.7078,1247.8,1247.7,9.18503733]
[1672927542148,9.28331311,1247.8,1247.5,3.00128322]
[1672927542359,2.98400934,1247.7,1247.6,1.20051329]
[1672927542786,9.28331311,1247.8,1247.5,5.50128322]
[1672927542992,6.191789,1247.6,1247.5,5.50128322]
[1672927543197,6.191789,1247.6,1247.5,13.48828322]
[1672927543410,6.191789,1247.6,1247.5,10.98828322]
[1672927543618,6.191789,1247.6,1247.5,9.18751329]
[1672927543831,6.191789,1247.6,1247.5,1.20051329]
[1672927544043,6.191789,1247.6,1247.5,5.50128322]
[1672927544467,6.191789,1247.6,1247.5,3.00128322]
[1672927544678,6.191789,1247.6,1247.5,1.20051329]
[1672927546257,2.983989,1247.6,1247.5,3.70051329]
[1672927546457,2.983989,1247.6,1247.5,1.20051329]
[1672927547305,2.983989,1247.6,1247.5,5.50128322]
[1672927548043,2.983989,1247.6,1247.5,4.30076993]
[1672927548254,2.983989,1247.6,1247.5,5.50185892]
[1672927548780,2.983989,1247.6,1247.5,3.00185892]
[1672927549936,2.983989,1247.6,1247.5,5.50185892]
[1672927550462,2.983989,1247.6,1247.5,3.00185892]
[1672927553089,2.983989,1247.6,1247.5,5.50185892]
[1672927553403,2.983989,1247.6,1247.5,5.50183049]
[1672927554138,2.983989,1247.7,1247.5,4.30076993]
[1672927554351,2.5,1247.6,1247.5,6.68412045]
[1672927554880,2.983989,1247.7,1247.5,4.88260073]
[1672927555200,2.983989,1247.7,1247.6,10.98942291]
[1672927556353,2.983989,1247.7,1247.6,9.18796916]
[1672927556563,2.983989,1247.7,1247.6,10.98942291]
[1672927557821,2.983989,1247.7,1247.6,9.18796916]
[1672927558554,6.191789,1247.7,1247.6,9.18796916]
[1672927558874,3.2078,1247.7,1247.6,9.18796916]
[1672927559083,3.2078,1247.7,1247.6,7.987]
[1672927561604,3.2078,1247.7,1247.4,13.48942291]
[1672927561921,5.48214071,1247.6,1247.4,12.28845375]
[1672927562122,5.48214071,1247.6,1247.5,3.70112012]
[1672927562341,2.5,1247.6,1247.5,2.5]
[1672927562762,5.48187217,1247.6,1247.5,2.5]
[1672927562975,5.48187217,1247.6,1247.5,3.70112012]
[1672927563285,5.48187217,1247.6,1247.5,2.5]
[1672927564235,5.48187217,1247.6,1247.4,13.48957387]
[1672927565177,8.68967217,1247.6,1247.4,13.48957387]
[1672927565710,8.68967217,1247.6,1247.5,2.5]
[1672927565921,6.18967217,1247.6,1247.5,2.5]
[1672927566138,6.18967217,1247.6,1247.5,3.70112012]
[1672927566662,6.18967217,1247.6,1247.5,2.5]
[1672927567395,6.18967217,1247.6,1247.5,3.70112012]
[1672927567712,2.98187217,1247.6,1247.5,3.70112012]
[1672927568029,6.18967217,1247.6,1247.5,1.20112012]
[1672927568230,6.18967217,1247.6,1247.5,3.70112012]
[1672927568440,6.18967217,1247.6,1247.5,1.20112012]
[1672927569603,6.18967217,1247.6,1247.4,13.48957387]
[1672927569808,6.18967217,1247.6,1247.5,2.5]
[1672927571084,6.18967217,1247.6,1247.5,3.70112012]
[1672927571500,6.18967217,1247.6,1247.4,13.48957387]
[1672927571914,6.18967217,1247.6,1247.5,2.5]
[1672927572126,6.18967217,1247.6,1247.5,3.70112012]
[1672927572445,6.18967217,1247.6,1247.5,2.5]
[1672927573495,6.18967217,1247.6,1247.4,13.48957387]
[1672927576123,6.18967217,1247.6,1247.4,10.98957387]
[1672927576334,6.18967217,1247.6,1247.4,9.18812012]
[1672927576537,2.98187217,1247.5,1247.4,11.68812012]
[1672927576746,5.48187217,1247.5,1247.4,11.68812012]
[1672927577699,2.98187217,1247.5,1247.4,11.68812012]
[1672927577916,5.48187217,1247.5,1247.4,9.18812012]
[1672927578754,2.98187217,1247.5,1247.4,9.18812012]
[1672927578960,2.98187217,1247.5,1247.4,11.68812012]
[1672927579173,8.68967217,1247.6,1247.4,13.48957387]
[1672927579374,6.18967217,1247.6,1247.4,13.48957387]
[1672927579587,6.18967217,1247.6,1247.5,11.68812012]
[1672927580535,6.18967217,1247.6,1247.5,13.48957387]
[1672927581277,2.98187217,1247.6,1247.5,13.48957387]
[1672927584220,2.98187217,1247.6,1247.5,13.48954838]
[1672927584532,2.98187217,1247.6,1247.5,12.28845375]
[1672927584947,6.18967217,1247.7,1247.5,12.28845375]
[1672927585159,6.18967217,1247.7,1247.6,3.70108494]
[1672927585690,6.18967217,1247.7,1247.6,11.68808494]
[1672927585896,2.98187217,1247.7,1247.6,13.48953869]
[1672927586107,2.98187217,1247.7,1247.6,13.48941208]
[1672927586317,2.98187217,1247.7,1247.6,13.48941167]
[1672927586529,2.98187217,1247.8,1247.6,12.28845375]
[1672927586740,2.98187217,1247.8,1247.7,11.68765031]
[1672927586954,5.7078,1247.9,1247.7,11.68765031]
[1672927587690,5.7078,1247.9,1247.8,1.5]
[1672927588531,5.7078,1247.9,1247.7,11.68765031]
[1672927589058,9.28331311,1247.9,1247.7,10.487]
[1672927589686,5.7078,1247.9,1247.7,11.68765031]
[1672927590215,5.7078,1247.9,1247.8,1.5]
[1672927590531,3.2078,1247.9,1247.8,1.5]
[1672927591476,3.2078,1247.9,1247.7,11.68765031]
[1672927592214,3.2078,1247.9,1247.7,10.487]
[1672927593055,3.2078,1247.9,1247.8,1.5]
[1672927598407,3.2078,1247.9,1247.7,11.68765031]
[1672927599036,3.2078,1247.9,1247.8,2.5]
[1672927599251,3.2078,1247.9,1247.8,10.487]
[1672927599786,3.2078,1247.9,1247.7,2.5]
[1672927600003,5.7078,1247.9,1247.7,10.487]
[1672927600316,3.2078,1247.9,1247.7,10.487]
[1672927601049,5.7078,1247.9,1247.7,10.487]
[1672927602740,3.2078,1247.8,1247.7,10.487]
[1672927606416,3.2078,1247.8,1247.7,11.68765031]
[1672927606624,3.2078,1247.8,1247.7,10.487]
[1672927607356,9.28331311,1248.0,1247.7,11.68765031]
[1672927607568,5.7078,1248.0,1247.7,11.68765031]
[1672927608513,2.5,1248.1,1247.9,7.987]
[1672927608926,2.5,1248.1,1248.0,10.487]
[1672927609348,9.28331311,1248.2,1248.1,1.5]
[1672927610294,9.28331311,1248.2,1248.0,10.487]
[1672927610724,2.5,1248.1,1248.0,10.487]
[1672927611149,9.28331311,1248.2,1248.0,10.487]
[1672927611359,13.43172583,1248.2,1248.0,10.487]
[1672927611569,9.28331311,1248.2,1248.0,10.487]
[1672927612194,2.5,1248.1,1248.0,10.487]
[1672927612405,2.5,1248.1,1248.0,7.987]
[1672927612825,13.43172583,1248.2,1248.0,7.987]
[1672927613562,9.28331311,1248.2,1247.9,7.987]
[1672927613776,6.07551311,1248.2,1248.0,10.487]
[1672927614090,5.7078,1248.1,1248.0,10.487]
[1672927614504,3.2078,1248.1,1248.0,10.487]
[1672927614709,10.93172583,1248.3,1248.0,10.487]
[1672927614925,6.78331311,1248.3,1248.0,10.487]
[1672927615141,9.28331311,1248.3,1248.1,1.5]
[1672927616300,6.78331311,1248.3,1248.1,1.5]
[1672927618397,9.28331311,1248.3,1248.1,1.5]
[1672927619018,6.78331311,1248.3,1248.1,1.5]
[1672927619230,9.28331311,1248.3,1248.1,1.5]
[1672927620187,6.78331311,1248.3,1248.1,1.5]
[1672927620403,9.28331311,1248.3,1248.1,1.5]
[1672927620917,6.78331311,1248.3,1248.1,1.5]
[1672927622081,7.72392583,1248.4,1248.1,1.5]
[1672927622297,10.80354638,1248.5,1248.2,11.1948]
[1672927622507,3.2078,1248.5,1248.2,14.19690406]
[1672927622819,4.14841272,1248.7,1248.2,14.19690406]
[1672927622820,7.35621272,1248.7,1248.2,14.19690406]
[1672927623026,2.5,1248.6,1248.4,7.987]
[1672927623444,3.2078,1248.7,1248.5,10.487]
[1672927623764,5.7078,1248.7,1248.6,10.487]
[1672927624286,3.2078,1248.7,1248.6,10.487]
[1672927625437,5.32981272,1248.9,1248.6,10.487]
[1672927625438,3.2078,1248.9,1248.6,10.487]
[1672927625652,3.2078,1248.9,1248.8,7.987]
[1672927626492,2.5,1249.0,1248.8,7.987]
[1672927626704,2.5,1249.0,1248.9,10.487]
[1672927626915,7.35621272,1249.1,1248.9,10.487]
[1672927627124,3.2078,1249.1,1248.9,10.487]
[1672927627433,5.7078,1249.1,1248.9,10.487]
[1672927627648,5.7078,1249.1,1249.0,1.5]
[1672927628806,5.7078,1249.1,1248.9,10.487]
[1672927629543,3.2078,1249.1,1249.0,1.5]
[1672927631646,5.7078,1249.3,1249.0,1.5]
[1672927632799,3.2078,1249.3,1249.0,1.5]
[1672927635441,3.20125551,1249.3,1249.0,1.5]
[1672927635645,2.5,1249.2,1249.0,1.5]
[1672927636690,3.20125551,1249.3,1249.0,1.5]
[1672927636902,2.5,1249.4,1249.1,9.1684]
[1672927637113,5.7078,1249.5,1249.1,9.1684]
[1672927637323,3.2078,1249.5,1249.3,7.987]
[1672927637742,3.2078,1249.5,1249.4,10.487]
[1672927637949,5.7078,1249.7,1249.4,10.487]
[1672927638165,5.7078,1249.7,1249.6,7.987]
[1672927638590,5.7078,1249.7,1249.5,10.487]
[1672927638800,5.7078,1249.7,1249.5,2.5]
[1672927639113,5.7078,1249.7,1249.4,2.5]
[1672927639749,5.7078,1249.7,1249.5,7.987]
[1672927640379,5.7078,1249.7,1249.3,2.5]
[1672927640588,3.2078,1249.5,1249.0,15.0254835]
[1672927640799,3.2078,1249.5,1249.1,7.987]
[1672927641009,2.5,1249.4,1249.2,2.5]
[1672927641534,2.5,1249.4,1249.1,7.987]
[1672927642167,2.5,1249.4,1249.2,2.5]
[1672927642380,2.5,1249.4,1249.2,10.487]
[1672927643010,3.2078,1249.3,1249.1,7.987]
[1672927643221,3.2078,1249.3,1249.2,2.5]
[1672927643528,3.2078,1249.3,1249.0,5.7078]
[1672927643947,2.5,1249.2,1249.1,7.987]
[1672927644279,2.5,1249.2,1249.1,10.487]
[1672927644792,3.2078,1249.3,1249.1,10.487]
[1672927645630,2.5,1249.4,1249.2,2.5]
[1672927647001,2.5,1249.4,1249.3,7.987]
[1672927648155,3.2078,1249.5,1249.3,7.987]
[1672927648993,3.2078,1249.5,1249.2,10.487]
[1672927649307,3.2078,1249.3,1249.2,10.487]
[1672927649937,3.2078,1249.3,1249.2,7.987]
[1672927650679,3.2078,1249.5,1249.2,7.987]
[1672927650884,2.5,1249.4,1249.2,7.987]
[1672927651205,2.5,1249.4,1249.3,10.487]
[1672927652150,3.2078,1249.5,1249.3,10.487]
[1672927652358,3.2078,1249.5,1249.4,10.487]
[1672927652983,3.2078,1249.5,1249.4,7.987]
[1672927654774,3.2078,1249.5,1249.3,10.487]
[1672927655096,2.5,1249.4,1249.3,7.987]
[1672927656243,2.5,1249.4,1249.2,7.987]
[1672927656457,2.5,1249.4,1249.3,10.487]
[1672927657929,2.5,1249.4,1249.2,7.987]
[1672927658133,2.5,1249.4,1249.3,10.487]
[1672927659081,3.2078,1249.5,1249.3,10.487]
[1672927659292,3.2078,1249.5,1249.4,10.487]
[1672927660127,3.2078,1249.5,1249.4,7.987]
[1672927660549,3.2078,1249.5,1249.2,7.987]
[1672927660761,3.2078,1249.5,1249.3,10.487]
[1672927661175,3.2078,1249.5,1249.4,2.5]
[1672927661601,3.2078,1249.5,1249.2,7.987]
[1672927661816,3.2078,1249.3,1249.2,7.987]
[1672927662026,3.2078,1249.3,1249.1,2.5]
[1672927662230,3.2078,1249.3,1249.0,3.70065031]
[1672927662549,2.5,1249.2,1249.0,3.70065031]
[1672927662762,2.5,1249.2,1249.0,11.68765031]
[1672927663075,2.5,1249.2,1249.0,13.48910406]
[1672927663495,3.2078,1249.3,1249.0,13.48910406]
[1672927663909,3.2078,1249.3,1249.1,1.20065031]
[1672927664334,3.2078,1249.3,1249.2,10.487]
[1672927666434,3.2078,1249.3,1249.2,7.987]
[1672927666643,3.2078,1249.5,1249.2,7.987]
[1672927666859,2.5,1249.4,1249.2,9.18765031]
[1672927667490,2.5,1249.4,1249.2,10.98910406]
[1672927667698,2.5,1249.4,1249.2,9.18765031]
[1672927667899,3.2078,1249.5,1249.2,9.18765031]
[1672927667900,1.5,1249.6,1249.4,7.987]
[1672927668116,1.5,1249.6,1249.5,1.5]
[1672927668547,1.5,1249.6,1249.5,2.5]
[1672927668855,1.5,1249.6,1249.4,7.987]
[1672927669066,1.5,1249.6,1249.5,2.5]
[1672927669485,1.5,1249.6,1249.4,9.18765031]
[1672927671062,3.2078,1249.7,1249.5,10.487]
[1672927671268,3.2078,1249.7,1249.5,11.68765031]
[1672927672535,3.2078,1249.7,1249.5,10.487]
[1672927673477,3.2078,1249.7,1249.5,11.68765031]
[1672927673898,3.2078,1249.7,1249.5,10.487]
[1672927675589,3.2078,1249.7,1249.5,7.987]
[1672927676106,3.2078,1249.7,1249.5,10.487]
[1672927676322,6.75652247,1249.9,1249.6,1.20065031]
[1672927676528,3.2078,1249.9,1249.7,7.987]
[1672927676737,2.5,1249.9,1249.7,7.987]
[1672927680317,5.7078,1249.9,1249.7,7.987]
[1672927683997,5.7078,1249.9,1249.6,7.987]
[1672927684415,5.7078,1249.9,1249.7,10.487]
[1672927685048,5.7078,1249.9,1249.7,7.987]
[1672927685463,5.7078,1249.9,1249.6,7.987]
[1672927685673,5.7078,1249.9,1249.7,10.487]
[1672927686835,5.7078,1249.9,1249.6,7.987]
[1672927687048,5.7078,1249.9,1249.7,10.487]
[1672927687256,5.7078,1249.9,1249.8,2.5]
[1672927687782,5.7078,1249.9,1249.7,10.487]
[1672927692404,5.7078,1249.9,1249.6,7.987]
[1672927692611,5.7078,1249.9,1249.8,7.987]
[1672927694499,5.7078,1249.9,1249.5,11.6684]
[1672927694710,5.7078,1249.9,1249.5,10.487]
[1672927701334,9.25652247,1249.9,1249.5,10.487]
[1672927702071,5.7078,1249.9,1249.5,10.487]
[1672927702281,3.2078,1249.8,1249.5,10.48377849]
[1672927702487,2.5,1249.7,1249.5,10.48377849]
[1672927704486,3.2078,1249.8,1249.5,10.48377849]
[1672927704800,3.2078,1249.8,1249.5,11.6844288]
[1672927706270,2.5,1249.7,1249.5,11.6844288]
[1672927706592,2.5,1249.7,1249.5,10.48377849]
[1672927707427,3.2078,1249.6,1249.4,9.18765031]
[1672927707639,2.5,1249.5,1249.3,3.70065031]
[1672927707847,2.5,1249.5,1249.3,5.50210406]